{"text_format":"1","workbook":"xlsx","n_sheets":8,"sheets":["Index","General Info","Regulations","Current Report","Previous Report","Affirmation","Taxonomy","TextBlock"],"not_rendered":{"charts":0,"images":1,"macros":1,"external_links":0,"defined_names":3,"comments":0,"pivot_tables":0},"unopened":[],"bounds":{"document_bytes":16777216,"sheet_cells":100000,"rows_first":2000,"rows_last":500,"rows_between":2000,"halvings":0,"cell_chars":16384,"cell_head_chars":4096},"cells_cut":0,"cells_raw":0,"read":"whole","date_system":"1900"}

{"sheet":"Index","index":0,"n_rows":52,"n_cols":10,"rows_kept":52,"cut":false,"hidden":false,"merged":[[20,3,20,9],[5,4,5,8],[6,5,6,8],[7,5,7,8],[8,5,8,8],[9,5,9,8],[10,5,10,8],[51,3,51,9],[29,4,29,8],[30,4,30,8],[39,3,39,9],[40,3,40,9],[41,3,41,9],[44,3,44,9],[45,3,45,9],[46,3,46,9],[31,4,31,8],[34,3,34,9],[35,3,35,9],[36,3,36,9],[37,3,37,9],[38,3,38,9],[0,9,4,10],[47,3,47,9],[48,3,48,9],[49,3,49,9],[50,3,50,9],[21,3,21,9],[22,3,22,9],[23,3,23,9],[26,3,26,9],[27,4,27,8],[28,4,28,8],[13,3,13,9],[14,3,14,9],[15,3,15,9],[18,3,18,9],[19,3,19,9]]}
[]
[]
[]
[]
[]
[null,null,null,null,"                                      XBRL Excel Utility"]
[null,null,null,null,"1.","Overview"]
[null,null,null,null,"2.","Before you begin"]
[null,null,null,null,"3.","Index"]
[null,null,null,null,"4.","Steps for Filing - Annual Secretarial Compliance Report"]
[null,null,null,null,"5.","Fill up the data in excel utility"]
[]
[]
[null,null,null,"1. Overview"]
[null,null,null,"The excel utility can be used for creating the XBRL/XML file for  Annual Secretarial Compliance Report "]
[null,null,null,"XBRL filling consists of two processes. Firstly generation of XBRL/XML file and then upload the generated XBRL/XML file to BSE Listing Center Website (www.listing.bseindia.com)."]
[]
[]
[null,null,null," 2.  Before you begin"]
[null,null,null,"1. The version of Microsoft Excel in your system should be Microsoft Office Excel 2010  and above."]
[null,null,null,"2. The system should have a file compression software to unzip excel utility file."]
[null,null,null,"3. Make sure that you have downloaded the latest Excel Utility from BSE Website to your local system."]
[null,null,null,"4. Make sure that you have downloaded the Chrome Browser to view report generated from Excel utility"]
[null,null,null,"5. Please enable the Macros (if disabled) as per instructions given in manual, so that all the functionalities of  Excel Utility works fine. Please first go through Enable Macro - Manual attached with zip file."]
[]
[]
[null,null,null,"3. Index "]
[null,null,null,1,"Details of general information about company",null,null,null,null,"General Info"]
[null,null,null,2,"Regulations Details",null,null,null,null,"Regulation"]
[null,null,null,3,"Current Report",null,null,null,null,"Current Report"]
[null,null,null,4,"Previous Report",null,null,null,null,"Previous Report"]
[null,null,null,5,"Affirmation",null,null,null,null,"Affirmation"]
[]
[]
[null,null,null,"4. Steps for Filing -Annual Secretarial Compliance Report"]
[null,null,null,"I.  Fill up the data: Navigate to each field of every section in the sheet to provide applicable data in correct format.  (Formats will get reflected while filling data.)  \n   - Use paste special command to paste data from other sheet.\n"]
[null,null,null,"II. Validating Sheets:  Click on the ''Validate \"  button to ensure that the sheet has been properly filled and also data has been furnished in proper format. If there are some errors on the sheet, excel utility will prompt you about the same."]
[null,null,null,"III. Validate All Sheets:  Click on the ''Home\"  button. And then click on \"Validate All Sheet\" button to ensure that all sheets has been properly filled and validated successfully. If there are some errors on the sheet, excel utility will prompt you about the same and stop validation at the same time. After correction, once again follow the same procedure to validate all sheets."]
[null,null,null,"Excel Utility will not allow you to generate XBRL/XML until you rectify all errors. "]
[null,null,null,"IV. Generate XML :   Excel Utility will not allow you to generate XBRL/XML unless successful validation of all sheet is completed. Now click on 'Generate XML'' to generate XBRL/XML file. \n    - Save the XBRL/XML file in your desired folder in local system. "]
[null,null,null,"V. Generate Report :   Excel Utility will allow you to generate Report. Now click on 'Generate Report'' to generate html report.   \n     - Save the HTML Report file in your desired folder in local system.     \n     - To view HTML Report open \"Chrome Web Browser\" . \n     - To print report in PDF Format, Click on print button and save as PDF. "]
[null,null,null,"VI. Upload XML file to BSE Listing Center: For uploading the XBRL/XML file generated through  Utility, login to BSE Listing Center and upload generated xml file. On Upload screen provide the required information and browse to select XML file and submit the XML.\n"]
[]
[]
[null,null,null,"5. Fill up the data in excel utility"]
[null,null,null,"1. Cells with red fonts indicate mandatory fields. "]
[null,null,null,"2. If mandatory field is left empty, then Utility will not allow you to proceed further for generating XML."]
[null,null,null,"3. You are not allowed to enter data in the Grey Cells."]
[null,null,null,"4. If fields are not applicable to your company then leave it blank. Do not insert Zero unless it is a mandatory field."]
[null,null,null,"5. Data provided must be in correct format, otherwise Utility will not allow you to proceed further for generating XML ."]
[null,null,null,"6. Select data from \"Dropdown list\" wherever applicable. "]
[null,null,null,"7. Adding Notes:  Click on \"Add Notes\" button to add notes "]

{"sheet":"General Info","index":1,"n_rows":30,"n_cols":9,"rows_kept":30,"cut":false,"hidden":false,"merged":[[8,4,8,5]]}
[]
[null,null,null,null,null,null,null,"Yes","ACS"]
[null,null,null,null,null,null,null,"No","FCS"]
[]
[]
[]
[]
[]
[null,null,null,null,"General information about company"]
[null,null,null,null,"Scrip Code*","531201"]
[null,null,null,null,"NSE Symbol*","NOTLISTED"]
[null,null,null,null,"MSEI Symbol"]
[null,null,null,null,"ISIN","INE024F01011"]
[null,null,null,null,"Name of the listed entity","SHILCHAR TECHNOLOGIES LIMITED"]
[null,null,null,null,"Date of start of financial year","01-04-2022"]
[null,null,null,null,"Date of end of financial year","31-03-2023"]
[null,null,null,null,"Date of Reporting to Exchange","23-05-2023"]
[null,null,null,null,"Whether any observations reported by the Secretarial Auditor","No"]
[null,null,null,null,"The listed entity has maintained proper records under the provisions of the above Regulations and circulars/ guidelines issued thereunder insofar as it appears from my/our examination of those records.","Yes"]
[null,null,null,null,"In previous, Any actions taken against the listed entity/its promoters/directors/its material subsidiaries either by SEBI or by stock exchanges (including under the Standard operating procedures issued by SEBI through various circulars).","Yes"]
[null,null,null,null,"Is there any observation made in the previous report","Yes"]
[null,null,null,null,"Name of the Certifying Firm","Kashyap Shah & Co"]
[null,null,null,null,"Name of the practicing Company Secretary issuing the report","Kashyap Shah"]
[null,null,null,null,"Membership Type","FCS"]
[null,null,null,null,"ACS/FCS No.","7662"]
[null,null,null,null,"UDIN","F007662E000355900"]
[null,null,null,null,"CP No.","6672"]
[null,null,null,null,"Place of PCS","vadodara"]
[null,null,null,null,"PCS Report Date","23-05-2023"]
[null,null,null,null,"Company Remark"]

{"sheet":"Regulations","index":2,"n_rows":20,"n_cols":12,"rows_kept":20,"cut":false,"hidden":false,"merged":[[8,4,8,7]]}
[null,null,null,null,null,null,null,null,0]
[null,null,null,null,null,null,null,null,null,"Yes"]
[null,null,null,null,null,null,null,null,null,"No"]
[]
[]
[]
[]
[]
[null,null,null,null,"Regulations"]
[null,null,null,null,"Sr No","Regulation","Applicability during the period under review (Yes/No)","Any Observation (Yes/No)"]
[null,null,null,null,1,"Securities and Exchange Board of India (Listing Obligations and Disclosure Requirements) Regulations, 2015","Yes","No",null,null,{"$f":"+F11","v":"Securities and Exchange Board of India (Listing Obligations and Disclosure Requirements) Regulations, 2015"},{"$f":"INDEX($K$11:K20,COUNTA($K$11:K11),1)","v":"Securities and Exchange Board of India (Listing Obligations and Disclosure Requirements) Regulations, 2015"}]
[null,null,null,null,2,"Securities and Exchange Board of India (Issue of Capital and Disclosure Requirements) Regulations, 2018","Yes","No",null,null,{"$f":"+F12","v":"Securities and Exchange Board of India (Issue of Capital and Disclosure Requirements) Regulations, 2018"},{"$f":"INDEX($K$11:K20,COUNTA($K$11:K12),1)","v":"Securities and Exchange Board of India (Issue of Capital and Disclosure Requirements) Regulations, 2018"}]
[null,null,null,null,3,"Securities and Exchange Board of India (Substantial Acquisition of Shares and Takeovers) Regulations, 2011","Yes","No",null,null,"Securities and Exchange Board of India (Substantial Acquisition of Shares and Takeovers) Regulations, 2011",{"$f":"INDEX($K$11:K20,COUNTA($K$11:K13),1)","v":"Securities and Exchange Board of India (Substantial Acquisition of Shares and Takeovers) Regulations, 2011"}]
[null,null,null,null,4,"Securities and Exchange Board of India (Buyback of Securities) Regulations, 2018","No","No",null,null,"Securities and Exchange Board of India (Buyback of Securities) Regulations, 2018",{"$f":"INDEX($K$11:K20,COUNTA($K$11:K14),1)","v":"Securities and Exchange Board of India (Buyback of Securities) Regulations, 2018"}]
[null,null,null,null,5,"Securities and Exchange Board of India (Share Based Employee Benefits) Regulations, 2014","No","No",null,null,"Securities and Exchange Board of India (Share Based Employee Benefits) Regulations, 2014",{"$f":"INDEX($K$11:K20,COUNTA($K$11:K15),1)","v":"Securities and Exchange Board of India (Share Based Employee Benefits) Regulations, 2014"}]
[null,null,null,null,6,"Securities and Exchange Board of India (Issue and Listing of Debt Securities) Regulations, 2008","No","No",null,null,"Securities and Exchange Board of India (Issue and Listing of Debt Securities) Regulations, 2008",{"$f":"INDEX($K$11:K22,COUNTA($K$11:K16),1)","v":"Securities and Exchange Board of India (Issue and Listing of Debt Securities) Regulations, 2008"}]
[null,null,null,null,7,"Securities and Exchange Board of India(Issue and Listing of Non-Convertible and Redeemable Preference Shares) Regulations,2013","No","No",null,null,"Securities and Exchange Board of India(Issue and Listing of Non-Convertible and Redeemable Preference Shares) Regulations,2013",{"$f":"INDEX($K$11:K23,COUNTA($K$11:K17),1)","v":"Securities and Exchange Board of India(Issue and Listing of Non-Convertible and Redeemable Preference Shares) Regulations,2013"}]
[null,null,null,null,8,"Securities and Exchange Board of India (Prohibition of Insider Trading) Regulations, 2015","Yes","No",null,null,"Securities and Exchange Board of India (Prohibition of Insider Trading) Regulations, 2015",{"$f":"INDEX($K$11:K24,COUNTA($K$11:K18),1)","v":"Securities and Exchange Board of India (Prohibition of Insider Trading) Regulations, 2015"}]
[null,null,null,null,9,"Specify any other regulation applicable to the Company",null,null,null,null,null,{"$f":"INDEX($K$11:K25,COUNTA($K$11:K19)+3,1)","v":0}]
[null,null,null,null,null,null,"Yes",null,null,null,{"$f":"+F20","v":0},{"$f":"INDEX($K$11:K25,COUNTA($K$11:K20)+3,1)","v":0}]

{"sheet":"Current Report","index":3,"n_rows":10,"n_cols":30,"rows_kept":10,"cut":false,"hidden":true,"merged":[[8,4,8,17]]}
[null,null,null,null,null,null,null,null,0,null,null,"SEBI","Stock Exchange","Other Regulatory Body"]
[null,null,null,null,null,"ComplianceRequirement","NameOfRegulationOrSebiCircularNumber","RegulationNumberOrCircularDated","DetailsOfDeviations","InCurrentReportActionsTakenBy","NameOfOtherRegulatoryBody","TypeOfAction","DetailsOfOtherAction","DetailsOfViolation","AmountOfFine","ObservationsRemarksOfThePractisingCompanySecretary","ManagementResponse","ManagementRemarks",null,null,null,null,null,null,"Advisory","Clarification","Fine","Show Cause Notice","Warning","Other"]
[]
[]
[]
[]
[]
[]
[null,null,null,null,"Current Report"]
[null,null,null,null,"Sr No","Compliance requirement (regulations/circulars/ guidelines including specific clauses)","Regulation Name/ SEBI Circular number","Regulation Number/ circular dated","Deviations","Action taken by","Name of Other Regulatory Body","Type of Action (Advisory/Clarification/Fine/Show Cause Notice/ Warning, etc.)","Details of other action taken","Details of violation","Fine Amount","Observations/remarks of the practising Company Secretary, if any","Management Response","Remarks"]

{"sheet":"Previous Report","index":4,"n_rows":13,"n_cols":35,"rows_kept":13,"cut":false,"hidden":false,"merged":[[8,4,8,19]]}
[null,null,null,null,null,null,null,null,1,3]
[null,null,null,null,null,null,null,null,null,null,null,null,null,null,null,null,null,null,null,null,null,null,null,null,null,null,"Securities and Exchange Board of India (Listing Obligations and Disclosure Requirements) Regulations, 2015","Securities and Exchange Board of India (Issue of Capital and Disclosure Requirements) Regulations, 2018","Securities and Exchange Board of India (Substantial Acquisition of Shares and Takeovers) Regulations, 2011","Securities and Exchange Board of India (Buyback of Securities) Regulations, 2018","Securities and Exchange Board of India (Share Based Employee Benefits) Regulations, 2014","Securities and Exchange Board of India (Issue and Listing of Debt Securities) Regulations, 2008","Securities and Exchange Board of India(Issue and Listing of Non-Convertible and Redeemable Preference Shares) Regulations,2013","Securities and Exchange Board of India (Prohibition of Insider Trading) Regulations, 2015",{"$f":"IF(G11=\"\",\"\",G11)","v":""}]
[]
[null,null,null,null,null,null,null,null,null,null,null,null,null,null,null,null,null,null,null,null,null,null,null,null,null,null,"Advisory","Clarification","Fine","Show Cause Notice","Warning","Other"]
[]
[]
[]
[]
[null,null,null,null,"Previous Report",null,null,null,null,null,null,null,null,null,null,null,null,null,null,null,null,null,null,null,null,null,"SEBI","Stock Exchange","Other Regulatory Body"]
[null,null,null,null,"Sr No","Compliance requirement (regulations/circulars/ guidelines including specific clauses)","Regulation Name/ SEBI Circular number*","Regulation Number/ circular dated","Deviations","Actions taken by","Name of Other Regulatory Body","Type of Action (Advisory/Clarification/Fine/Show Cause Notice/ Warning, etc.)","Details of other action taken","Details of violation","Fine Amount","Observations of the practicing Company secretary in the previous reports","Observations made in the secretarial compliance report for the year ended.(the years are to be mentioned)","Comments of the practicing company secretary on the actions taken by the listed entity.","Management Response","Remarks"]
[null,null,null,null,null,null,null,null,null,null,null,null,null,null,null,null,null,null,null,null,null,null,null,null,null,null,"Securities and Exchange Board of India (Listing Obligations and Disclosure Requirements) Regulations, 2015","Securities and Exchange Board of India (Issue of Capital and Disclosure Requirements) Regulations, 2018","Securities and Exchange Board of India (Substantial Acquisition of Shares and Takeovers) Regulations, 2011","Securities and Exchange Board of India (Buyback of Securities) Regulations, 2018","Securities and Exchange Board of India (Share Based Employee Benefits) Regulations, 2014","Securities and Exchange Board of India (Issue and Listing of Debt Securities) Regulations, 2008","Securities and Exchange Board of India(Issue and Listing of Non-Convertible and Redeemable Preference Shares) Regulations,2013","Securities and Exchange Board of India (Prohibition of Insider Trading) Regulations, 2015",{"$f":"IF(G11=\"\",\"\",G11)","v":""}]
[]
[null,null,null,null,1,"The Board to have Minimum 6 Directors ","Securities and Exchange Board of India (Listing Obligations and Disclosure Requirements) Regulations, 2015","Regulation 17(1) of SEBI (LODR) Regulations, 2015","Composition of Board was of 5 Directors from 04.06.2021 to 31.10.2021","Stock Exchange",null,"Fine",null,"Composition of Board was of 5 Directors from 04.06.2021 to 31.10.2021",342200,"Non Compliance with the Requirements pertaining to the the Composition of the Board of 6 Directors ","2022-03-31","NA","The Board made appointment of Mr. Aashay Shah as Additional Director with effect from 01/11/2021",null,null,null,null,null,null,null,"Securities and Exchange Board of India (Listing Obligations and Disclosure Requirements) Regulations, 2015","Securities and Exchange Board of India (Issue of Capital and Disclosure Requirements) Regulations, 2018","Securities and Exchange Board of India (Substantial Acquisition of Shares and Takeovers) Regulations, 2011","Securities and Exchange Board of India (Buyback of Securities) Regulations, 2018","Securities and Exchange Board of India (Share Based Employee Benefits) Regulations, 2014","Securities and Exchange Board of India (Issue and Listing of Debt Securities) Regulations, 2008","Securities and Exchange Board of India(Issue and Listing of Non-Convertible and Redeemable Preference Shares) Regulations,2013","Securities and Exchange Board of India (Prohibition of Insider Trading) Regulations, 2015",{"$f":"IF(G13=\"\",\"\",G13)","v":"Securities and Exchange Board of India (Listing Obligations and Disclosure Requirements) Regulations, 2015"}]

{"sheet":"Affirmation","index":5,"n_rows":30,"n_cols":22,"rows_kept":30,"cut":false,"hidden":false,"merged":[[8,4,8,7],[29,6,29,7]]}
[null,null,null,null,null,null,null,null,0,null,null,null,null,null,"Yes","No","NA"]
[]
[null,null,null,null,null,"Details Of Other Affirmation","Compliance status (Yes/No/NA)","Observations /Remarks by PCS*"]
[]
[]
[null,null,null,null,null,null,null,null,null,null,null,null,null,"Securities and Exchange Board of India (Listing Obligations and Disclosure Requirements) Regulations, 2015","Securities and Exchange Board of India (Issue of Capital and Disclosure Requirements) Regulations, 2018","Securities and Exchange Board of India (Substantial Acquisition of Shares and Takeovers) Regulations, 2011","Securities and Exchange Board of India (Buyback of Securities) Regulations, 2018","Securities and Exchange Board of India (Share Based Employee Benefits) Regulations, 2014","Securities and Exchange Board of India (Issue and Listing of Debt Securities) Regulations, 2008","Securities and Exchange Board of India(Issue and Listing of Non-Convertible and Redeemable Preference Shares) Regulations,2013","Securities and Exchange Board of India (Prohibition of Insider Trading) Regulations, 2015","Specify any other regulation applicable to the Company"]
[]
[]
[null,null,null,null,"Affirmation"]
[null,null,null,null,"Sr No","Regulation","Compliance status (Yes/No/NA)","Observations /Remarks by PCS*"]
[]
[null,null,null,null,1,"Secretarial Standards:\nThe compliances of the listed entity are in accordance with the applicable Secretarial Standards (SS) issued by the Institute of Company Secretaries India (ICSI)","Yes",null,null,null,null,null,null,null,"WhetherTheCompliancesOfTheListedEntityAreInAccordanceWithTheApplicableSecretarialStandards","ObservationOrRemarksByPCSRelatingToTheCompliancesOfTheListedEntityAreInAccordanceWithTheApplicableSecretarialStandards"]
[null,null,null,null,2,"Adoption and timely updation of the Policies"]
[null,null,null,null,"(a)","All applicable policies under SEBI Regulations are adopted\nwith the approval of board of directors of the listed entities","Yes",null,null,null,null,null,null,null,"WhetherAllApplicablePoliciesUnderSEBIRegulationsAreAdoptedWithTheApprovalOfBoardOfDirectorsOfTheListedEntities","ObservationOrRemarksByPCSRelatingToAllApplicablePoliciesUnderSEBIRegulationsAreAdoptedWithTheApprovalOfBoardOfDirectorsOfTheListedEntities"]
[null,null,null,null,"(b)","All the policies are in conformity with SEBI Regulations and\nhas been reviewed & timely updated as per the\nregulations/circulars/guidelines issued by SEBI","Yes",null,null,null,null,null,null,null,"WhetherAllThePoliciesAreInConformityWithSEBIRegulationsAndHasBeenReviewedAndTimelyUpdated","ObservationOrRemarksByPCSRelatingToWhetherAllThePoliciesAreInConformityWithSEBIRegulationsAndHasBeenReviewedAndTimelyUpdated"]
[null,null,null,null,3,"Maintenance and disclosures on Website"]
[null,null,null,null,"(a)","The Listed entity is maintaining a functional website","Yes",null,null,null,null,null,null,null,"WhetherTheListedEntityIsMaintainingAFunctionalWebsite","ObservationOrRemarksByPCSRelatingToTheListedEntityIsMaintainingAFunctionalWebsite"]
[null,null,null,null,"(b)","Timely dissemination of the documents/ information under\na separate section on the website","Yes",null,null,null,null,null,null,null,"WhetherTimelyDisseminationOfTheDocumentsOrInformationUnderASeparateSectionOnTheWebsite","ObservationOrRemarksByPCSRelatingToTimelyDisseminationOfTheDocumentsOrInformationUnderASeparateSectionOnTheWebsite"]
[null,null,null,null,"(c)","Web-links provided in annual corporate governance reports\nunder Regulation 27(2) are accurate and specific which re-directs to the relevant document(s)/ section of the website","Yes",null,null,null,null,null,null,null,"WhetherWeblinksProvidedInAnnualCorporateGovernanceReportsUnderSubRegulation2OfRegulation27","ObservationOrRemarksByPCSRelatingToWeblinksProvidedInAnnualCorporateGovernanceReportsUnderSubRegulation2OfRegulation27"]
[null,null,null,null,4,"Disqualification of Director:\nNone of the Director of the Company are disqualified under\nSection 164 of Companies Act, 2013","Yes",null,null,null,null,null,null,null,"WhetherTheDirectorOfTheCompanyDisqualifiedUnderSection164OfCompaniesAct2013","ObservationOrRemarksByPCSRelatingToTheDirectorOfTheCompanyDisqualifiedUnderSection164OfCompaniesAct2013"]
[null,null,null,null,5,"To examine details related to Subsidiaries of listed entities:\n(a) Identification of material subsidiary companies\n(b) Requirements with respect to disclosure of material as well\nas other subsidiaries","NA","THERE IS NO SUBSIDIARY OF THE LISTED ENTITY.",null,null,null,null,null,null,"WhetherPCSExaminedIdentificationAndRequirementsWithRespectToDisclosureOfMaterial","ObservationOrRemarksByPCSRelatingToExaminedIdentificationAndRequirementsWithRespectToDisclosureOfMaterial"]
[null,null,null,null,{"$f":"+E21+1","v":6},"Preservation of Documents:\nThe listed entity is preserving and maintaining records as\nprescribed under SEBI Regulations and disposal of records as\nper Policy of Preservation of Documents and Archival policy\nprescribed under SEBI LODR Regulations, 2015","Yes",null,null,null,null,null,null,null,"WhetherTheListedEntityIsPreservingAndMaintainingRecordsAndDisposalOfRecordsAsPerSEBILODRRegulations2015","ObservationOrRemarksByPCSRelatingToTheListedEntityIsPreservingAndMaintainingRecordsAndDisposalOfRecordsAsPerSEBILODRRegulations2015"]
[null,null,null,null,{"$f":"+E22+1","v":7},"Performance Evaluation:\nThe listed entity has conducted performance evaluation of the\nBoard, Independent Directors and the Committees at the start\nof every financial year as prescribed in SEBI Regulations","Yes",null,null,null,null,null,null,null,"WhetherTheListedEntityHasConductedPerformanceEvaluationOfTheBoardIndependentDirectorsAndTheCommitteesAtStartOfEveryFinancialYear","ObservationOrRemarksByPCSRelatingToPerformanceEvaluationOfTheBoardIndependentDirectorsAndTheCommitteesAtStartOfEveryFinancialYear"]
[null,null,null,null,8,"Related Party Transactions"]
[null,null,null,null,"(a)","The listed entity has obtained prior approval of Audit\nCommittee for all Related party transactions","Yes",null,null,null,null,null,null,null,"WhetherTheListedEntityHasObtainedPriorApprovalOfAuditCommitteeForAllRelatedPartyTransactions","ObservationOrRemarksByPCSRelatingToTheListedEntityHasObtainedPriorApprovalOfAuditCommitteeForAllRelatedPartyTransactions"]
[null,null,null,null,"(b)","In case no prior approval obtained, the listed entity shall\nprovide detailed reasons along with confirmation whether\nthe transactions were subsequently\napproved/ratified/rejected by the Audit committee","Yes",null,null,null,null,null,null,null,"WhetherTheListedEntityShallProvideDetailedReasonsAndConfirmationForTransactionsWithoutApproval","ObservationOrRemarksByPCSRelatingToWhetherTheListedEntityShallProvideDetailedReasonsAndConfirmationForTransactionsWithoutApproval"]
[null,null,null,null,{"$f":"+E24+1","v":9},"Disclosure of events or information:\nThe listed entity has provided all the required disclosure(s)\nunder Regulation 30 alongwith Schedule III of SEBI LODR\nRegulations, 2015 within the time limits prescribed\nthereunder.","Yes",null,null,null,null,null,null,null,"WhetherTheListedEntityHasProvidedAllTheRequiredDisclosureUnderREG30AlongWithScheduleIIIWithinTheTimeLimitsPrescribed","ObservationOrRemarksByPCSRelatingToTheListedEntityHasProvidedAllTheRequiredDisclosureUnderREG30AlongWithScheduleIIIWithinTheTimeLimitsPrescribed"]
[null,null,null,null,10,"Prohibition of Insider Trading:\nThe listed entity is in compliance with Regulation 3(5) & 3(6)\nSEBI (Prohibition of Insider Trading) Regulations, 2015","Yes",null,null,null,null,null,null,null,"WhetherTheListedEntityIsInComplianceWithSubRegulations5And6OfRegulations3UnderSEBIProhibitionOfInsiderTradingRegulations2015","ObservationOrRemarksByPCSRelatingToTheListedEntityIsInComplianceWithSubRegulations5And6OfRegulations3UnderSEBIProhibitionOfInsiderTradingRegulations2015"]
[null,null,null,null,11,"Actions taken by SEBI or Stock Exchange(s), if any:\nNo Actions taken against the listed entity/ its promoters/\ndirectors/ subsidiaries either by SEBI or by Stock Exchanges\n(including under the Standard Operating Procedures issued by\nSEBI through various circulars) under SEBI Regulations and\ncirculars/ guidelines issued thereunder","Yes","BSE Limited levied fine of Rs. 342200 for non compliance of Rule 17(1) off SEBI (LODR) Regulations, 2015. The\nCompany has paid the fine.",null,null,null,null,null,null,"WhetherActionsTakenBySEBIOrStockExchanges","ObservationOrRemarksByPCSRelatingToActionsTakenBySEBIOrStockExchanges"]
[null,null,null,null,12,"Additional Non-compliances, if any: \nNo of any additional non-compliance observed for all SEBI regulation/circular/guidance note etc."]

{"sheet":"Taxonomy","index":6,"n_rows":92,"n_cols":5,"rows_kept":92,"cut":false,"hidden":true,"merged":[]}
["Element","Label","Type","PeriodType","Valdiation"]
["ScripCode","Scrip Code*","in-capmkt-types:ScripCode","instant"]
["NSESymbol","NSE Symbol*","xbrli:stringItemType","instant"]
["MSEISymbol","MSEI Symbol","xbrli:stringItemType","instant"]
["ISIN","ISIN","in-capmkt-types:ISINNumber","instant"]
["NameOfTheCompany","Name of the listed entity","xbrli:stringItemType","instant"]
["DateOfStartOfFinancialYear","Date of start of financial year","xbrli:dateItemType","instant"]
["DateOfEndOfFinancialYear","Date of end of financial year","xbrli:dateItemType","instant"]
["DateOfReport","Date of Reporting to Exchange","xbrli:dateItemType","instant"]
["WhetherAnyObservationsReportedByTheSecretarialAuditor","Whether any observations reported by the Secretarial Auditor","xbrli:booleanItemType","instant"]
["WhetherTheListedEntityHasMaintainedProperRecordsUnderTheProvisionsOfTheAboveRegulationsAndCircularsGuidelinesIssuedThereunderInSofarAsItAppearsFromMyOurExaminationOfThoseRecords","The listed entity has maintained proper records under the provisions of the above Regulations and circulars/ guidelines issued thereunder insofar as it appears from my/our examination of those records.","xbrli:booleanItemType","instant"]
["AnyActionStakenAgainstTheListedEntityItsPromotersDirectorsItsMaterialSubsidiariesEitherBySEBIOrByStockExchangesIncludingUnderTheStandardOperatingProceduresIssuedBySEBIThroughVariousCirculars","In previous, Any actions taken against the listed entity/its promoters/directors/its material subsidiaries either by SEBI or by stock exchanges (including under the Standard operating procedures issued by SEBI through various circulars).","xbrli:booleanItemType","instant"]
["IsthereAnyObservationMadeInThePreviousReport","Is there any observation made in the previous report","xbrli:booleanItemType","instant"]
["NameOfTheCertifyingFirm","Name of the Certifying Firm","xbrli:stringItemType","duration"]
["NameOfThePracticingCompanySecretaryIssuingTheReport","Name of the practicing Company Secretary issuing the report","xbrli:stringItemType","duration"]
["MembershipType","Membership Type","in-capmkt-types:MembershipType","duration"]
["MembershipNumber","ACS/FCS No.","in-capmkt-types:MembershipNumber","instant"]
["UDINOfASCR","UDIN","in-capmkt-types:ASCRUDIN","duration"]
["CertificateOfPracticeNumber","CP No.","xbrli:integerItemType","duration"]
["PlaceOfPCS","Place of PCS","xbrli:stringItemType","duration"]
["DateOfReportOfPCS","PCS Report Date","xbrli:dateItemType","instant"]
["CompanyRemarksExplanatory","Company Remark","nonnum:textBlockItemType","instant"]
["REGULATIONS"]
["ApplicabilityDuringThePeriodUnderReview","Applicability during the period under review (Yes/No)","xbrli:booleanItemType","instant"]
["Observation","Any Observation (Yes/No)","xbrli:booleanItemType","instant"]
["REGULATIONS  Dynamic"]
["NameOfRegulationOrSebiCircularNumber","Regulation","xbrli:stringItemType","instant"]
["ApplicabilityDuringThePeriodUnderReview","Applicability during the period under review (Yes/No)","xbrli:booleanItemType","instant"]
["Observation","Any Observation (Yes/No)","xbrli:booleanItemType","instant"]
["Current Report"]
["ComplianceRequirement","Compliance requirement (regulations/circulars/ guidelines including specific clauses)","xbrli:stringItemType","instant","This field is mandatory."]
["NameOfRegulationOrSebiCircularNumber","Regulation Name/ SEBI Circular number","xbrli:stringItemType","instant","(1) This field is mandatory.\n(2) Please select only that Regulation Name/SEBI Circular No. Which Is \"YES\" selected in \"Regulations\" sheet"]
["RegulationNumberOrCircularDated","Regulation Number/ circular dated","xbrli:stringItemType","instant","This field is mandatory."]
["DetailsOfDeviations","Deviations","xbrli:stringItemType","instant","This field is mandatory."]
["ActionTakenBy","Action taken by","xbrli:stringItemType","instant","This field is mandatory."]
["NameOfOtherRegulatoryBody","Name of Other Regulatory Body","xbrli:stringItemType","instant"]
["TypeOfAction","Type of Action (Advisory/Clarification/Fine/Show Cause Notice/ Warning, etc.)","in-capmkt-types:TypeOfAction","instant","(1) This field is mandatory.\n(2) Please select dropdown from only."]
["DetailsOfOtherAction","Details of other action taken","xbrli:stringItemType","instant","This field is mandatory, If \"Other\" selected in \"Type of Action (Advisory/Clarification/Fine/Show Cause Notice/ Warning, etc.)\" field."]
["DetailsOfViolation","Details of violation","xbrli:stringItemType","instant","This field is mandatory."]
["AmountOfFine","Fine Amount","xbrli:monetaryItemType","instant","(1) This field is mandatory, If \"Fine\" selected in \"Type of Action (Advisory/Clarification/Fine/Show Cause Notice/ Warning, etc.)\" field.\n2) Please enter only fine amount up to 2 decimal."]
["ObservationsRemarksOfThePractisingCompanySecretary","Observations/remarks of the practising Company Secretary, if any","xbrli:stringItemType","instant","This field is mandatory."]
["ManagementResponse","Management Response","xbrli:stringItemType","instant","This field is mandatory."]
["ManagementRemarks","Remarks","xbrli:stringItemType","instant","This field is mandatory."]
["Previous Report"]
["ComplianceRequirement","Compliance requirement (regulations/circulars/ guidelines including specific clauses)","xbrli:stringItemType","instant","This field is mandatory."]
["NameOfRegulationOrSebiCircularNumber","Regulation Name/ SEBI Circular number*","xbrli:stringItemType","instant","(1) This field is a mandatory.\n(2) If \"Yes\" selected in \"Is there any observation made in the previous report\" in \"General  info\" sheet."]
["DetailsOfDeviations","Deviations","xbrli:stringItemType","instant","This field is mandatory."]
["ActionTakenBy","Actions taken by","xbrli:stringItemType","instant","This field is mandatory."]
["TypeOfAction","Type of Action (Advisory/Clarification/Fine/Show Cause Notice/ Warning, etc.)","xbrli:stringItemType","instant","(1)This field is a mandatory.\n(2)Please select dropdown from only."]
["DetailsOfOtherAction","Details of other action taken","in-capmkt-types:TypeOfAction","instant","This field is mandatory, If \"Other\" selected in \"Type of Action (Advisory/Clarification/Fine/Show Cause Notice/ Warning, etc.)\" field."]
["DetailsOfViolation","Details of violation","xbrli:stringItemType","instant","This field is mandatory."]
["AmountOfFine","Fine Amount","xbrli:monetaryItemType","instant"]
["ObservationsOfThePracticingCompanySecretaryInThePreviousReports","Observations of the practicing Company secretary in the previous reports","xbrli:stringItemType","instant","This field is mandatory."]
["ObservationsMadeInTheSecretarialComplianceReport","Observations made in the secretarial compliance report for the year ended.(the years are to be mentioned)","xbrli:stringItemType","instant","This field is mandatory."]
["CommentsOfThePracticingCompanySecretaryOnTheActionsTakenByTheListedEntity","Comments of the practicing company secretary on the actions taken by the listed entity.","xbrli:stringItemType","instant","This field is mandatory."]
["ManagementResponse","Management Response","xbrli:stringItemType","instant","This field is mandatory."]
["ManagementRemarks","Remarks","xbrli:stringItemType","instant","This field is mandatory."]
["Affirmation"]
["WhetherTheCompliancesOfTheListedEntityAreInAccordanceWithTheApplicableSecretarialStandards",null,"in-capmkt-types:Yes_No_NA","instant"]
["ObservationOrRemarksByPCSRelatingToTheCompliancesOfTheListedEntityAreInAccordanceWithTheApplicableSecretarialStandards","The compliances of the listed entity are in accordance with the applicable Secretarial Standards (SS) issued by the Institute of Company Secretaries India (ICSI)","xbrli:stringItemType","instant","This field is mandatory."]
["WhetherAllApplicablePoliciesUnderSEBIRegulationsAreAdoptedWithTheApprovalOfBoardOfDirectorsOfTheListedEntities",null,"in-capmkt-types:Yes_No_NA","instant"]
["ObservationOrRemarksByPCSRelatingToAllApplicablePoliciesUnderSEBIRegulationsAreAdoptedWithTheApprovalOfBoardOfDirectorsOfTheListedEntities",null,"xbrli:stringItemType","instant"]
["WhetherAllThePoliciesAreInConformityWithSEBIRegulationsAndHasBeenReviewedAndTimelyUpdated",null,"in-capmkt-types:Yes_No_NA","instant"]
["ObservationOrRemarksByPCSRelatingToWhetherAllThePoliciesAreInConformityWithSEBIRegulationsAndHasBeenReviewedAndTimelyUpdated",null,"xbrli:stringItemType","instant"]
["WhetherTheListedEntityIsMaintainingAFunctionalWebsite",null,"in-capmkt-types:Yes_No_NA","instant"]
["ObservationOrRemarksByPCSRelatingToTheListedEntityIsMaintainingAFunctionalWebsite",null,"xbrli:stringItemType","instant"]
["WhetherTimelyDisseminationOfTheDocumentsOrInformationUnderASeparateSectionOnTheWebsite",null,"in-capmkt-types:Yes_No_NA","instant"]
["ObservationOrRemarksByPCSRelatingToTimelyDisseminationOfTheDocumentsOrInformationUnderASeparateSectionOnTheWebsite",null,"xbrli:stringItemType","instant"]
["WhetherWeblinksProvidedInAnnualCorporateGovernanceReportsUnderSubRegulation2OfRegulation27",null,"in-capmkt-types:Yes_No_NA","instant"]
["ObservationOrRemarksByPCSRelatingToWeblinksProvidedInAnnualCorporateGovernanceReportsUnderSubRegulation2OfRegulation27",null,"xbrli:stringItemType","instant"]
["WhetherTheDirectorOfTheCompanyDisqualifiedUnderSection164OfCompaniesAct2013",null,"in-capmkt-types:Yes_No_NA","instant"]
["ObservationOrRemarksByPCSRelatingToTheDirectorOfTheCompanyDisqualifiedUnderSection164OfCompaniesAct2013",null,"xbrli:stringItemType","instant"]
["WhetherPCSExaminedIdentificationAndRequirementsWithRespectToDisclosureOfMaterial",null,"in-capmkt-types:Yes_No_NA","instant"]
["ObservationOrRemarksByPCSRelatingToExaminedIdentificationAndRequirementsWithRespectToDisclosureOfMaterial",null,"xbrli:stringItemType","instant"]
["WhetherTheListedEntityIsPreservingAndMaintainingRecordsAndDisposalOfRecordsAsPerSEBILODRRegulations2015",null,"in-capmkt-types:Yes_No_NA","instant"]
["ObservationOrRemarksByPCSRelatingToTheListedEntityIsPreservingAndMaintainingRecordsAndDisposalOfRecordsAsPerSEBILODRRegulations2015",null,"xbrli:stringItemType","instant"]
["WhetherTheListedEntityHasConductedPerformanceEvaluationOfTheBoardIndependentDirectorsAndTheCommitteesAtStartOfEveryFinancialYear",null,"in-capmkt-types:Yes_No_NA","instant"]
["ObservationOrRemarksByPCSRelatingToPerformanceEvaluationOfTheBoardIndependentDirectorsAndTheCommitteesAtStartOfEveryFinancialYear",null,"xbrli:stringItemType","instant"]
["WhetherTheListedEntityHasObtainedPriorApprovalOfAuditCommitteeForAllRelatedPartyTransactions",null,"in-capmkt-types:Yes_No_NA","instant"]
["ObservationOrRemarksByPCSRelatingToTheListedEntityHasObtainedPriorApprovalOfAuditCommitteeForAllRelatedPartyTransactions",null,"xbrli:stringItemType","instant"]
["WhetherTheListedEntityShallProvideDetailedReasonsAndConfirmationForTransactionsWithoutApproval",null,"in-capmkt-types:Yes_No_NA","instant"]
["ObservationOrRemarksByPCSRelatingToWhetherTheListedEntityShallProvideDetailedReasonsAndConfirmationForTransactionsWithoutApproval",null,"xbrli:stringItemType","instant"]
["WhetherTheListedEntityHasProvidedAllTheRequiredDisclosureUnderREG30AlongWithScheduleIIIWithinTheTimeLimitsPrescribed",null,"in-capmkt-types:Yes_No_NA","instant"]
["ObservationOrRemarksByPCSRelatingToTheListedEntityHasProvidedAllTheRequiredDisclosureUnderREG30AlongWithScheduleIIIWithinTheTimeLimitsPrescribed",null,"xbrli:stringItemType","instant"]
["WhetherTheListedEntityIsInComplianceWithSubRegulations5And6OfRegulations3UnderSEBIProhibitionOfInsiderTradingRegulations2015",null,"in-capmkt-types:Yes_No_NA","instant"]
["ObservationOrRemarksByPCSRelatingToTheListedEntityIsInComplianceWithSubRegulations5And6OfRegulations3UnderSEBIProhibitionOfInsiderTradingRegulations2015",null,"xbrli:stringItemType","instant"]
["WhetherActionsTakenBySEBIOrStockExchanges",null,"in-capmkt-types:Yes_No_NA","instant"]
["ObservationOrRemarksByPCSRelatingToActionsTakenBySEBIOrStockExchanges",null,"xbrli:stringItemType","instant"]
[]
["DetailsOfOtherAffirmation","Details Of Other Affirmation","xbrli:stringItemType","instant"]
["ComplianceStatus","Compliance status (Yes/No/NA)","in-capmkt-types:Yes_No_NA","instant","1)This field is mandatory.\n2) Please select from dropdown only."]
["ObservationOrRemarksByPracticingCompanySecretory","Observations /Remarks by PCS*","xbrli:stringItemType","instant"]

{"sheet":"TextBlock","index":7,"n_rows":8,"n_cols":5,"rows_kept":8,"cut":false,"hidden":true,"merged":[]}
[null,"115100102100102100",null,null,13]
[]
[null,"100100"]
[null,"100100"]
[]
[null,"084104105115032105115032077121032076111099097108032086097099116105110099101"]
[null,"084104105115032105115032077121032076111099097108032086097099116105110099101"]
[null,"084104105115032105115032077121032076111099097108032086097099116105110099101"]